Workbook

Sheet Hoja1
A1: Mes | B1: Alquiles s/c | C1: Pagaré | D1: Tot. Alq. | E1: Agua | F1: Pasto | G1: Sub total | H1: Administ. | I1: Total | J1: Seguro | K1: Observaciones
A2: marzo | B2: 40500 | C2: 43900 | D2: =B2+C2 -> 84400 | E2: 5000 | F2: 6500 | G2: =B2+C2+E2+F2 -> 95900 | H2: =D2*0.04 -> 3376 | I2: =G2-H2 -> 92524 | K2: Agua febrero $4.500
A3: abril | B3: 40500 | C3: 43900 | D3: =B3+C3 -> 84400 | G3: =B3+C3+E3+F3 -> 84400 | H3: =(B3+C3)*0.04 -> 3376 | I3: =G3-H3 -> 81024 | K3: Agua marzo $ 5.000
A4: mayo | B4: 60750 | C4: 65800 | D4: 126550 | G4: =B4+C4+E4+F4 -> 126550 | H4: =(B4+C4)*0.04 -> 5062 | I4: 121488
A5: junio | B5: 60750 | C5: 65800 | D5: 126550 | G5: =B5+C5+E5+F5 -> 126550 | H5: =(B5+C5)*0.04 -> 5062 | I5: 121488 | K5: Corte de pasto:
A6: julio | B6: 60750 | C6: 65800 | D6: 126550 | G6: =B6+C6+E6+F6 -> 126550 | H6: =(B6+C6)*0.04 -> 5062 | I6: 121488 | K6: Desde diciembre incluido
A7: agosto | B7: 60750 | C7: 65800 | D7: 126550 | G7: =B7+C7+E7+F7 -> 126550 | H7: =(B7+C7)*0.04 -> 5062 | I7: 121488 | K7: $6.500 falta diferencia
A8: septiembre | B8: 60750 | C8: 65800 | D8: 126550 | G8: =B8+C8+E8+F8 -> 126550 | H8: =(B8+C8)*0.04 -> 5062 | I8: 121488
A9: octubre | B9: 60750 | C9: 65800 | D9: 126550 | G9: =B9+C9+E9+F9 -> 126550 | H9: =(B9+C9)*0.04 -> 5062 | I9: 121488 | K9: Seguro:
A10: noviembre | B10: 91200 | C10: 98700 | D10: 189900 | G10: =B10+C10+E10+F10 -> 189900 | H10: =(B10+C10)*0.04 -> 7596 | I10: 182304 | K10: falta presentar póliza endosada
A11: diciembre | B11: 91200 | C11: 98700 | D11: 189900 | G11: =B11+C11+E11+F11 -> 189900 | H11: =(B11+C11)*0.04 -> 7596 | I11: 182304 | K11: a nombre Calandra Juana
A12: enero | B12: 91200 | C12: 98700 | D12: 189900 | G12: =B12+C12+E12+F12 -> 189900 | H12: =(B12+C12)*0.04 -> 7596 | I12: 182304 | K12: montos $40.000.000
A13: febrero | B13: 91200 | C13: 98700 | D13: 189900 | G13: =B13+C13+E13+F13 -> 189900 | H13: =(B13+C13)*0.04 -> 7596 | I13: 182304 | K13: (U$D 1.500 / m2)
A14: marzo | B14: 91200 | C14: 98700 | D14: 189900 | G14: =B14+C14+E14+F14 -> 189900 | H14: =(B14+C14)*0.04 -> 7596 | I14: =G14-H14 -> 182304 | K14: Terceros linderos $20.000.000
A15: abril | B15: 91200 | C15: 98700 | D15: 189900 | G15: 189900 | H15: 7596 | I15: 182304 | K15: Cristales $2.000.000
A16: mayo | D16: 0 | G16: 0 | H16: 0 | I16: 0
A17: junio | D17: 0 | G17: 0 | H17: 0 | I17: 0
